fUSD/lending_fUSD_20250103
["ID","MTS","AMOUNT","RATE_DAILY","PERIOD"]
[347505454,1735889440403,-795.12,9.55e-05,2]
[347505455,1735889440412,-500.0,9.55e-05,2]
[347505456,1735889440423,-500.0,9.55e-05,2]
[347505457,1735889440433,-1969.31,9.55e-05,2]
[347505458,1735889440444,-500.0,9.55e-05,2]
[347505459,1735889440456,-500.0,9.55e-05,2]
[347505460,1735889440466,-628.97,9.55e-05,2]
[347505461,1735889440477,-500.0,9.55e-05,2]
[347505462,1735889440486,-500.0,9.55e-05,2]
[347505463,1735889440495,-500.0,9.55e-05,2]
[347505464,1735889440505,-500.0,9.55e-05,2]
[347505481,1735889440806,-500.0,9.55e-05,2]
[347505483,1735889440821,-500.0,9.55e-05,2]
[347505485,1735889440831,-1149.01,9.55e-05,2]
[347505487,1735889440840,-500.0,9.55e-05,2]
[347505489,1735889440849,-1269.76,9.55e-05,2]
[347505491,1735889440858,-275.86946429,9.55e-05,2]
[347505493,1735889440867,-500.0,9.55e-05,2]
[347505495,1735889440876,-500.0,9.55e-05,2]
[347505497,1735889440885,-2959.48,9.55e-05,2]
[347505499,1735889440894,-500.0,9.55e-05,2]
[347505501,1735889440903,-1008.31,9.55e-05,2]
[347505503,1735889440913,-500.0,9.55e-05,2]
[347505505,1735889440922,-1850.42,9.55e-05,2]
[347505507,1735889440931,-500.0,9.55e-05,2]
[347505509,1735889440940,-3118.64,9.55e-05,2]
[347505511,1735889440949,-500.0,9.55e-05,2]
[347505513,1735889440958,-3734.32,9.55e-05,2]
[347505515,1735889440967,-500.0,9.55e-05,2]
[347505517,1735889440976,-500.0,9.55e-05,2]
[347505519,1735889440985,-500.0,9.55e-05,2]
[347505521,1735889440997,-2820.29,9.55e-05,2]
[347505523,1735889441006,-500.0,9.55e-05,2]
[347505525,1735889441015,-500.0,9.55e-05,2]
[347505527,1735889441024,-3233.44,9.55e-05,2]
[347505529,1735889441033,-500.0,9.55e-05,2]
[347505531,1735889441043,-1162.8,9.55e-05,2]
[347505533,1735889441052,-500.0,9.55e-05,2]
[347505535,1735889441061,-2392.17,9.55e-05,2]
[347505537,1735889441071,-500.0,9.55e-05,2]
[347505539,1735889441081,-500.0,9.55e-05,2]
[347505541,1735889441090,-1941.7,9.55e-05,2]
[347505543,1735889441100,-255.68318928,9.55e-05,2]
[347505545,1735889441109,-500.0,9.55e-05,2]
[347505547,1735889441118,-500.0,9.55e-05,2]
[347505549,1735889441127,-1633.84,9.55e-05,2]
[347505551,1735889441136,-500.0,9.55e-05,2]
[347505553,1735889441145,-500.0,9.55e-05,2]
[347505555,1735889441154,-500.0,9.55e-05,2]
[347505557,1735889441164,-1898.79,9.55e-05,2]
[347505559,1735889441173,-680.11,9.55e-05,2]
[347505561,1735889441182,-500.0,9.55e-05,2]
[347505563,1735889441191,-500.0,9.55e-05,2]
[347505564,1735889441201,-500.0,9.55e-05,2]
[347505566,1735889441210,-575.96,9.55e-05,2]
[347505568,1735889441220,-500.0,9.55e-05,2]
[347505570,1735889441229,-3100.15,9.55e-05,2]
[347505572,1735889441238,-500.0,9.55e-05,2]
[347505574,1735889441247,-500.0,9.55e-05,2]
[347505577,1735889441257,-621.99,9.55e-05,2]
[347505578,1735889441267,-1400.27,9.55e-05,2]
[347505581,1735889441277,-500.0,9.55e-05,2]
[347505582,1735889441286,-500.0,9.55e-05,2]
[347505584,1735889441295,-500.0,9.55e-05,2]
[347505586,1735889441305,-3653.51,9.55e-05,2]
[347505588,1735889441314,-500.0,9.55e-05,2]
[347505590,1735889441323,-500.0,9.55e-05,2]
[347505592,1735889441334,-233.97086197,9.55e-05,2]
[347505594,1735889441343,-500.0,9.55e-05,2]
[347505595,1735889441353,-506.89,9.55e-05,2]
[347505596,1735889441362,-500.0,9.55e-05,2]
[347505597,1735889441371,-3616.1,9.55e-05,2]
[347505598,1735889441381,-217.48115896,9.55e-05,2]
[347505599,1735889441390,-1220.05,9.55e-05,2]
[347505600,1735889441399,-500.0,9.55e-05,2]
[347505601,1735889441410,-645.33422189,9.55e-05,2]
[347505602,1735889441419,-3427.78,9.55e-05,2]
[347505603,1735889441428,-500.0,9.55e-05,2]
[347505604,1735889441438,-1629.66,9.55e-05,2]
[347505605,1735889441447,-886.22,9.55e-05,2]
[347505606,1735889441457,-500.0,9.55e-05,2]
[347505607,1735889441466,-500.0,9.55e-05,2]
[347505608,1735889441476,-1610.87,9.55e-05,2]
[347505609,1735889441488,-962.73,9.55e-05,2]
[347505610,1735889441498,-500.0,9.55e-05,2]
[347505611,1735889441508,-500.0,9.55e-05,2]
[347505612,1735889441517,-500.0,9.55e-05,2]
[347505613,1735889441526,-264.84629682,9.55e-05,2]
[347505614,1735889441535,-1197.65,9.55e-05,2]
[347505615,1735889441544,-500.0,9.55e-05,2]
[347505616,1735889441553,-1064.53,9.55e-05,2]
[347505617,1735889441563,-500.0,9.55e-05,2]
[347505618,1735889441572,-500.0,9.55e-05,2]
[347505619,1735889441582,-500.0,9.55e-05,2]
[347505620,1735889441591,-776.18,9.55e-05,2]
[347505621,1735889441601,-2098.93,9.55e-05,2]
[347505622,1735889441613,-500.0,9.55e-05,2]
[347505623,1735889441622,-722.26,9.55e-05,2]
[347505624,1735889441631,-500.0,9.55e-05,2]
[347505625,1735889441640,-500.0,9.55e-05,2]
[347505626,1735889441649,-500.0,9.55e-05,2]
[347505627,1735889441658,-1858.27,9.55e-05,2]
[347505628,1735889441667,-500.0,9.55e-05,2]
[347505629,1735889441676,-500.0,9.55e-05,2]
[347505630,1735889441686,-500.0,9.55e-05,2]
[347505631,1735889441695,-1626.13,9.55e-05,2]
[347505632,1735889441704,-1908.36,9.55e-05,2]
[347505633,1735889441713,-3848.5,9.55e-05,2]
[347505634,1735889441722,-500.0,9.55e-05,2]
[347505635,1735889441731,-1500.12,9.55e-05,2]
[347505636,1735889441740,-242.00151479,9.55e-05,2]
[347505637,1735889441749,-2493.01,9.55e-05,2]
[347505638,1735889441759,-500.0,9.55e-05,2]
[347505639,1735889441769,-500.0,9.55e-05,2]
[347505640,1735889441778,-829.88,9.55e-05,2]
[347505641,1735889441788,-500.0,9.55e-05,2]
[347505642,1735889441797,-3734.32,9.55e-05,2]
[347505643,1735889441806,-500.0,9.55e-05,2]
[347505644,1735889441815,-1481.05,9.55e-05,2]
[347505645,1735889441825,-1069.66,9.55e-05,2]
[347505646,1735889441835,-399.799879,9.55e-05,2]
[347505647,1735889441844,-4287.12,9.55e-05,2]
[347505648,1735889441854,-500.0,9.55e-05,2]
[347505649,1735889441864,-500.0,9.55e-05,2]
[347505650,1735889441873,-908.34,9.55e-05,2]
[347505651,1735889441883,-2226.04,9.55e-05,2]
[347505652,1735889441892,-500.0,9.55e-05,2]
[347505653,1735889441901,-500.0,9.55e-05,2]
[347505654,1735889441911,-1935.11,9.55e-05,2]
[347505655,1735889441920,-766.95,9.55e-05,2]
[347505656,1735889441929,-633.88694315,9.55e-05,2]
[347505657,1735889441938,-3127.69,9.55e-05,2]
[347505658,1735889441947,-500.0,9.55e-05,2]
[347505659,1735889441956,-2125.83,9.55e-05,2]
[347505660,1735889441965,-2269.35,9.55e-05,2]
[347505661,1735889441974,-500.0,9.55e-05,2]
[347505662,1735889441984,-500.0,9.55e-05,2]
[347505663,1735889441997,-1157.77,9.55e-05,2]
[347505664,1735889442006,-500.0,9.55e-05,2]
[347505665,1735889442015,-7348.78,9.55e-05,2]
[347505666,1735889442024,-500.0,9.55e-05,2]
[347505667,1735889442034,-1828.4,9.55e-05,2]
[347505668,1735889442043,-2068.98,9.55e-05,2]
[347505669,1735889442052,-500.0,9.55e-05,2]
[347505670,1735889442061,-620.47,9.55e-05,2]
[347505671,1735889442071,-3294.7,9.55e-05,2]
[347505672,1735889442080,-2082.35,9.55e-05,2]
[347505673,1735889442090,-4655.12,9.55e-05,2]
[347505674,1735889442099,-644.39207436,9.55e-05,2]
[347505675,1735889442109,-500.0,9.55e-05,2]
[347505676,1735889442119,-2196.19,9.55e-05,2]
[347505677,1735889442129,-4434.93,9.55e-05,2]
[347505678,1735889442138,-500.0,9.55e-05,2]
[347505679,1735889442147,-500.0,9.55e-05,2]
[347505680,1735889442157,-500.0,9.55e-05,2]
[347505681,1735889442165,-500.0,9.55e-05,2]
[347505682,1735889442174,-4512.12,9.55e-05,2]
[347505683,1735889442183,-2709.67,9.55e-05,2]
[347505684,1735889442193,-500.0,9.55e-05,2]
[347505685,1735889442202,-1733.07,9.55e-05,2]
[347505686,1735889442210,-1545.52,9.55e-05,2]
[347505687,1735889442219,-621.29385066,9.55e-05,2]
[347505688,1735889442228,-8054.32,9.55e-05,2]
[347505689,1735889442237,-500.0,9.55e-05,2]
[347505690,1735889442248,-29642.1,9.55e-05,2]
[347505691,1735889442257,-500.0,9.55e-05,2]
[347505692,1735889442266,-1352.57,9.55e-05,2]
[347505693,1735889442275,-500.0,9.55e-05,2]
[347505694,1735889442284,-3615.84,9.55e-05,2]
[347505695,1735889442293,-500.0,9.55e-05,2]
[347505696,1735889442302,-500.0,9.55e-05,2]
[347505697,1735889442313,-1181.73,9.55e-05,2]
[347505698,1735889442323,-3591.39,9.55e-05,2]
[347505699,1735889442334,-500.0,9.55e-05,2]
[347505700,1735889442345,-1094.51,9.55e-05,2]
[347505701,1735889442354,-500.0,9.55e-05,2]
[347505702,1735889442364,-643.01152191,9.55e-05,2]
[347505703,1735889442373,-3420.91,9.55e-05,2]
[347505704,1735889442382,-4007.83,9.55e-05,2]
[347505705,1735889442394,-2259.16,9.55e-05,2]
[347505706,1735889442406,-500.0,9.55e-05,2]
[347505707,1735889442417,-810.79,9.55e-05,2]
[347505708,1735889442431,-500.0,9.55e-05,2]
[347505709,1735889442441,-500.0,9.55e-05,2]
[347505710,1735889442450,-5579.59,9.55e-05,2]
[347505711,1735889442459,-500.0,9.55e-05,2]
[347505712,1735889442469,-588.22869276,9.55e-05,2]
[347505713,1735889442479,-272.91925365,9.55e-05,2]
[347505714,1735889442488,-2965.63,9.55e-05,2]
[347505715,1735889442497,-3526.56,9.55e-05,2]
[347505716,1735889442506,-2484.1,9.55e-05,2]
[347505717,1735889442516,-500.0,9.55e-05,2]
[347505718,1735889442526,-500.0,9.55e-05,2]
[347505719,1735889442536,-500.0,9.55e-05,2]
[347505720,1735889442547,-3201.49,9.55e-05,2]
[347505721,1735889442558,-500.0,9.55e-05,2]
[347505722,1735889442568,-500.0,9.55e-05,2]
[347505723,1735889442579,-3843.81,9.55e-05,2]
[347505724,1735889442588,-8800.73,9.55e-05,2]
[347505725,1735889442601,-1458.06,9.55e-05,2]
[347505726,1735889442610,-2112.39,9.55e-05,2]
[347505727,1735889442619,-500.0,9.55e-05,2]
[347505728,1735889442628,-500.0,9.55e-05,2]
[347505729,1735889442637,-17691.17,9.55e-05,2]
[347505730,1735889442646,-272.17890764,9.55e-05,2]
[347505731,1735889442655,-500.0,9.55e-05,2]
[347505732,1735889442664,-20696.64,9.55e-05,2]
[347505733,1735889442674,-500.0,9.55e-05,2]
[347505734,1735889442684,-2207.83,9.55e-05,2]
[347505735,1735889442695,-500.0,9.55e-05,2]
[347505736,1735889442705,-4072.28537053,9.55e-05,2]
[347505737,1735889442722,-553.72462947,9.55e-05,2]
[347505738,1735889442731,-350.13243047,9.55e-05,2]
[347505739,1735889442793,-1337.95727628,9.55e-05,2]
[347505740,1735889442804,-2566.43176824,9.55e-05,2]
[347505741,1735889442859,-6546.93852501,9.55e-05,2]
[347505742,1735889442868,-1439.55,9.55e-05,2]
[347505743,1735889442878,-912.73,9.55e-05,2]
[347505744,1735889442888,-2535.99,9.55e-05,2]
[347505745,1735889442897,-500.0,9.55e-05,2]
[347505746,1735889442907,-2844.74,9.55e-05,2]
[347505747,1735889442916,-2374.74,9.55e-05,2]
[347505748,1735889442925,-500.0,9.55e-05,2]
[347505749,1735889442934,-8005.5,9.55e-05,2]
[347505750,1735889442944,-3331.38,9.55e-05,2]
[347505751,1735889442954,-2372.3,9.55e-05,2]
[347505752,1735889442964,-500.0,9.55e-05,2]
[347505753,1735889442973,-500.0,9.55e-05,2]
[347505754,1735889442983,-500.0,9.55e-05,2]
[347505755,1735889442994,-263.55030757,9.55e-05,2]
[347505756,1735889443005,-500.0,9.55e-05,2]
[347505757,1735889443014,-1163.84188585,9.55e-05,2]
[347505758,1735889443027,-1111.42811415,9.55e-05,2]
[347505759,1735889443036,-500.0,9.55e-05,2]
[347505760,1735889443047,-2691.5,9.55e-05,2]
[347505761,1735889443056,-500.0,9.55e-05,2]
[347505762,1735889443066,-8283.89,9.55e-05,2]
[347505763,1735889443076,-500.0,9.55e-05,2]
[347505764,1735889443086,-2785.01,9.55e-05,2]
[347505765,1735889443096,-5278.51,9.551e-05,2]
[347505766,1735889443105,-2482.68,9.551e-05,2]
[347505767,1735889443115,-1365.18,9.551e-05,2]
[347505768,1735889443124,-2280.27,9.551e-05,2]
[347505769,1735889443135,-500.0,9.551e-05,2]
[347505770,1735889443144,-862.83,9.551e-05,2]
[347505771,1735889443153,-1850.34,9.551e-05,2]
[347505772,1735889443163,-500.0,9.551e-05,2]
[347505773,1735889443173,-500.0,9.551e-05,2]
[347505774,1735889443182,-500.0,9.551e-05,2]
[347505775,1735889443192,-500.0,9.551e-05,2]
[347505776,1735889443201,-922.1,9.551e-05,2]
[347505777,1735889443211,-500.0,9.551e-05,2]
[347505778,1735889443220,-5732.83,9.551e-05,2]
[347505779,1735889443230,-500.0,9.551e-05,2]
[347505780,1735889443240,-1044.88,9.551e-05,2]
[347505781,1735889443249,-500.0,9.551e-05,2]
[347505782,1735889443259,-574.44,9.551e-05,2]
[347505784,1735889443268,-579.32,9.551e-05,2]
[347505786,1735889443278,-500.0,9.551e-05,2]
[347505788,1735889443287,-500.0,9.551e-05,2]
[347505790,1735889443298,-1401.99,9.551e-05,2]
[347505792,1735889443308,-6466.71,9.551e-05,2]
[347505793,1735889443318,-802.97,9.551e-05,2]
[347505794,1735889443327,-500.0,9.551e-05,2]
[347505795,1735889443336,-500.0,9.551e-05,2]
[347505796,1735889443346,-1315.68,9.551e-05,2]
[347505797,1735889443355,-500.16,9.551e-05,2]
[347505798,1735889443365,-1511.06,9.551e-05,2]
[347505799,1735889443374,-500.0,9.551e-05,2]
[347505800,1735889443383,-500.0,9.551e-05,2]
[347505801,1735889443392,-500.0,9.551e-05,2]
[347505802,1735889443402,-500.0,9.551e-05,2]
[347505803,1735889443411,-500.0,9.551e-05,2]
[347505804,1735889443420,-1522.11,9.551e-05,2]
[347505805,1735889443429,-500.0,9.551e-05,2]
[347505806,1735889443438,-500.0,9.551e-05,2]
[347505807,1735889443447,-500.0,9.551e-05,2]
[347505808,1735889443457,-4584.19,9.551e-05,2]
[347505809,1735889443466,-598.11,9.551e-05,2]
[347505810,1735889443475,-992.97,9.551e-05,2]
[347505811,1735889443484,-500.0,9.551e-05,2]
[347505812,1735889443494,-500.0,9.551e-05,2]
[347505813,1735889443503,-1781.57,9.551e-05,2]
[347505814,1735889443512,-500.0,9.551e-05,2]
[347505815,1735889443522,-500.0,9.551e-05,2]
[347505816,1735889443530,-500.0,9.551e-05,2]
[347505817,1735889443539,-500.0,9.551e-05,2]
[347505818,1735889443548,-500.0,9.551e-05,2]
[347505819,1735889443557,-500.0,9.551e-05,2]
[347505820,1735889443566,-1391.26,9.551e-05,2]
[347505821,1735889443575,-500.0,9.551e-05,2]
[347505822,1735889443585,-8527.23,9.551e-05,2]
[347505823,1735889443595,-500.0,9.551e-05,2]
[347505824,1735889443605,-500.0,9.551e-05,2]
[347505825,1735889443614,-500.0,9.551e-05,2]
[347505826,1735889443624,-500.0,9.551e-05,2]
[347505827,1735889443633,-799.51,9.551e-05,2]
[347505828,1735889443642,-500.0,9.551e-05,2]
[347505829,1735889443652,-500.0,9.551e-05,2]
[347505830,1735889443661,-500.0,9.551e-05,2]
[347505831,1735889443670,-500.0,9.551e-05,2]
[347505832,1735889443679,-500.0,9.551e-05,2]
[347505833,1735889443689,-888.22,9.551e-05,2]
[347505834,1735889443698,-500.0,9.551e-05,2]
[347505835,1735889443708,-500.0,9.551e-05,2]
[347505836,1735889443718,-500.0,9.551e-05,2]
[347505837,1735889443727,-832.21,9.551e-05,2]
[347505838,1735889443737,-1952.85,9.551e-05,2]
[347505839,1735889443746,-1144.17391079,9.551e-05,2]
[347505840,1735889443778,-53.18608921,9.551e-05,2]
[347505841,1735889443788,-500.0,9.551e-05,2]
[347505842,1735889443798,-989.73,9.551e-05,2]
[347505843,1735889443808,-549.62,9.551e-05,2]
[347505844,1735889443818,-500.0,9.551e-05,2]
[347505845,1735889443828,-1234.26391078,9.551e-05,2]
[347505846,1735889443839,-304.33735203,9.551e-05,2]
[347505848,1735889443850,-5073.87873719,9.551e-05,2]
[347505849,1735889443860,-500.0,9.551e-05,2]
[347505850,1735889443869,-500.0,9.551e-05,2]
[347505851,1735889443878,-500.0,9.551e-05,2]
[347505852,1735889443887,-500.0,9.551e-05,2]
[347505853,1735889443896,-500.0,9.551e-05,2]
[347505854,1735889443906,-500.0,9.551e-05,2]
[347505855,1735889443916,-576.9,9.551e-05,2]
[347505856,1735889443925,-500.0,9.551e-05,2]
[347505857,1735889443934,-500.0,9.551e-05,2]
[347505858,1735889443944,-10281.43,9.551e-05,2]
[347505859,1735889443953,-500.0,9.551e-05,2]
[347505860,1735889443962,-559.35,9.551e-05,2]
[347505861,1735889443972,-631.23,9.551e-05,2]
[347505862,1735889443982,-687.99,9.551e-05,2]
[347505863,1735889443993,-500.0,9.551e-05,2]
[347505864,1735889444003,-500.0,9.551e-05,2]
[347505865,1735889444013,-560.69,9.551e-05,2]
[347505866,1735889444021,-500.0,9.551e-05,2]
[347505867,1735889444031,-1672.61,9.551e-05,2]
[347505868,1735889444041,-500.0,9.551e-05,2]
[347505869,1735889444050,-500.0,9.551e-05,2]
[347505870,1735889444060,-500.0,9.551e-05,2]
[347505871,1735889444071,-500.0,9.551e-05,2]
[347505872,1735889444081,-500.0,9.551e-05,2]
[347505873,1735889444091,-500.0,9.551e-05,2]
[347505874,1735889444100,-1499.14,9.551e-05,2]
[347505875,1735889444110,-500.0,9.551e-05,2]
[347505876,1735889444119,-691.66,9.551e-05,2]
[347505877,1735889444128,-500.0,9.551e-05,2]
[347505878,1735889444137,-328.39630581,9.551e-05,2]
[347505879,1735889444146,-9.44970008,9.551e-05,2]
[347505880,1735889445120,-490.55029992,9.551e-05,2]
[347505881,1735889445129,-1108.79,9.551e-05,2]
[347505882,1735889445138,-851.0,9.551e-05,2]
[347505883,1735889445147,-728.76,9.551e-05,2]
[347505884,1735889445157,-500.0,9.551e-05,2]
[347505885,1735889445166,-500.0,9.551e-05,2]
[347505886,1735889445175,-97.03255712,9.551e-05,2]
[347505887,1735889445186,-402.96744288,9.551e-05,2]
[347505888,1735889445195,-68.14257712,9.551e-05,2]
[347505889,1735889445208,-312.09912825,9.551e-05,2]
[347505890,1735889445218,-316.20855175,9.551e-05,2]
[347505893,1735889446326,-183.79144825,9.551e-05,2]
[347505894,1735889446336,-500.0,9.551e-05,2]
[347505895,1735889446345,-500.0,9.551e-05,2]
[347505897,1735889446355,-500.0,9.551e-05,2]
[347505898,1735889446364,-1366.15,9.551e-05,2]
[347505900,1735889446374,-500.0,9.551e-05,2]
[347505902,1735889446383,-500.0,9.551e-05,2]
[347505903,1735889446392,-1002.78,9.551e-05,2]
[347505904,1735889446402,-1064.07,9.551e-05,2]
[347505905,1735889446411,-516.66,9.551e-05,2]
[347505906,1735889446420,-500.0,9.551e-05,2]
[347505907,1735889446430,-257.14006475,9.551e-05,2]
[347505908,1735889446442,-491.79993525,9.551e-05,2]
[347505909,1735889446451,-500.0,9.551e-05,2]
[347505910,1735889446461,-471.00777934,9.551e-05,2]
[347505911,1735889446478,-28.99222066,9.551e-05,2]
[347505912,1735889446487,-738.88,9.551e-05,2]
[347505913,1735889446497,-75.13823847,9.551e-05,2]
[347505914,1735889446530,-424.86176153,9.551e-05,2]
[347505915,1735889446540,-500.0,9.551e-05,2]
[347505916,1735889446549,-1830.56,9.551e-05,2]
[347505917,1735889446558,-145.7660285,9.551e-05,2]
[347505918,1735889446570,-354.2339715,9.551e-05,2]
[347505919,1735889446581,-4232.71,9.551e-05,2]
[347505920,1735889446591,-500.0,9.551e-05,2]
[347505921,1735889446601,-767.45,9.551e-05,2]
[347505922,1735889446610,-533.92,9.551e-05,2]
[347505923,1735889446619,-929.08,9.551e-05,2]
[347505924,1735889446629,-500.0,9.551e-05,2]
[347505925,1735889446638,-500.0,9.551e-05,2]
[347505926,1735889446648,-1798.61,9.551e-05,2]
[347505927,1735889446657,-500.0,9.551e-05,2]
[347505928,1735889446666,-851.06372747,9.551e-05,2]
[347505929,1735889446678,-200.57627253,9.551e-05,2]
[347505930,1735889446687,-500.0,9.551e-05,2]
[347505931,1735889446697,-500.0,9.551e-05,2]
[347505932,1735889446706,-258.07092933,9.551e-05,2]
[347505933,1735889446716,-500.0,9.551e-05,2]
[347505934,1735889446725,-610.73,9.551e-05,2]
[347505935,1735889446735,-500.0,9.551e-05,2]
[347505936,1735889446745,-3498.37,9.551e-05,2]
[347505937,1735889446754,-1166.78,9.551e-05,2]
[347505938,1735889446763,-392.47279814,9.551e-05,2]
[347505951,1735889446913,-107.52720186,9.551e-05,2]
[347505953,1735889446922,-251.14644827,9.551e-05,2]
[347505955,1735889446933,-248.85355173,9.551e-05,2]
[347505957,1735889446943,-500.0,9.551e-05,2]
[347505958,1735889446951,-500.0,9.551e-05,2]
[347505959,1735889446960,-651.57,9.551e-05,2]
[347505960,1735889446970,-500.0,9.551e-05,2]
[347505961,1735889446979,-2198.99,9.551e-05,2]
[347505962,1735889446988,-552.02756947,9.551e-05,2]
[347505963,1735889447002,-500.0,9.551e-05,2]
[347505964,1735889447011,-500.0,9.551e-05,2]
[347505965,1735889447020,-500.0,9.551e-05,2]
[347505966,1735889447029,-500.0,9.551e-05,2]
[347505967,1735889447038,-1000.25,9.551e-05,2]
[347505968,1735889447048,-500.0,9.551e-05,2]
[347505969,1735889447058,-638.95,9.551e-05,2]
[347505970,1735889447067,-500.0,9.551e-05,2]
[347505971,1735889447079,-500.0,9.551e-05,2]
[347505972,1735889447088,-500.0,9.551e-05,2]
[347505973,1735889447097,-531.05,9.551e-05,2]
[347505974,1735889447106,-683.38,9.551e-05,2]
[347505975,1735889447115,-2588.53,9.551e-05,2]
[347505976,1735889447124,-500.0,9.551e-05,2]
[347505977,1735889447133,-2173.28,9.551e-05,2]
[347505978,1735889447142,-500.0,9.551e-05,2]
[347505979,1735889447151,-500.0,9.551e-05,2]
[347505980,1735889447160,-500.0,9.551e-05,2]
[347505981,1735889447169,-1085.9,9.551e-05,2]
[347505982,1735889447179,-698.42,9.551e-05,2]
[347505983,1735889447188,-500.0,9.551e-05,2]
[347505984,1735889447197,-1122.92,9.551e-05,2]
[347505985,1735889447206,-2986.76,9.551e-05,2]
[347505986,1735889447216,-500.0,9.551e-05,2]
[347505987,1735889447225,-500.0,9.551e-05,2]
[347505988,1735889447234,-500.0,9.551e-05,2]
[347505989,1735889447243,-3151.71,9.551e-05,2]
[347505990,1735889447253,-500.0,9.551e-05,2]
[347505991,1735889447262,-500.0,9.551e-05,2]
[347505992,1735889447271,-503.38599611,9.551e-05,2]
[347505993,1735889447282,-1310.4,9.551e-05,2]
[347505994,1735889447291,-2156.56,9.551e-05,2]
[347505995,1735889447301,-500.0,9.551e-05,2]
[347505996,1735889447310,-1036.68,9.551e-05,2]
[347505997,1735889447320,-500.0,9.551e-05,2]
[347505998,1735889447330,-500.0,9.551e-05,2]
[347505999,1735889447339,-594.55,9.551e-05,2]
[347506000,1735889447348,-500.0,9.551e-05,2]
[347506001,1735889447358,-500.0,9.551e-05,2]
[347506002,1735889447367,-1011.4,9.551e-05,2]
[347506003,1735889447376,-3755.41,9.551e-05,2]
[347506004,1735889447386,-1966.15,9.551e-05,2]
[347506005,1735889447395,-884.4,9.551e-05,2]
[347506006,1735889447404,-500.0,9.551e-05,2]
[347506007,1735889447413,-1990.22,9.551e-05,2]
[347506008,1735889447422,-531.95,9.551e-05,2]
[347506009,1735889447432,-500.0,9.551e-05,2]
[347506010,1735889447442,-864.47,9.551e-05,2]
[347506011,1735889447451,-500.0,9.551e-05,2]
[347506012,1735889447460,-1006.04,9.551e-05,2]
[347506013,1735889447470,-894.47,9.551e-05,2]
[347506014,1735889447479,-500.0,9.551e-05,2]
[347506015,1735889447488,-1818.0,9.551e-05,2]
[347506016,1735889447497,-500.0,9.551e-05,2]
[347506017,1735889447506,-501.41,9.551e-05,2]
[347506018,1735889447517,-500.0,9.551e-05,2]
[347506019,1735889447527,-500.0,9.551e-05,2]
[347506020,1735889447536,-500.0,9.551e-05,2]
[347506021,1735889447546,-502.19028755,9.551e-05,2]
[347506022,1735889447556,-3126.16,9.551e-05,2]
[347506023,1735889447566,-1004.56,9.551e-05,2]
[347506024,1735889447575,-2614.78,9.551e-05,2]
[347506025,1735889447586,-500.0,9.551e-05,2]
[347506026,1735889447596,-500.0,9.551e-05,2]
[347506027,1735889447606,-500.0,9.551e-05,2]
[347506028,1735889447615,-500.0,9.551e-05,2]
[347506029,1735889447624,-1052.20319163,9.551e-05,2]
[347506030,1735889447680,-309.3632,9.551e-05,2]
[347506031,1735889448843,-726.18360837,9.551e-05,2]
[347506032,1735889448855,-500.0,9.551e-05,2]
[347506033,1735889448864,-500.0,9.551e-05,2]
[347506034,1735889448874,-2324.91,9.551e-05,2]
[347506035,1735889448884,-500.0,9.551e-05,2]
[347506036,1735889448894,-500.0,9.551e-05,2]
[347506037,1735889448904,-570.04,9.551e-05,2]
[347506038,1735889448913,-1673.79,9.551e-05,2]
[347506039,1735889448922,-500.0,9.551e-05,2]
[347506040,1735889448932,-500.0,9.551e-05,2]
[347506041,1735889448942,-500.0,9.551e-05,2]
[347506042,1735889448952,-1017.31,9.551e-05,2]
[347506043,1735889448962,-647.54,9.551e-05,2]
[347506044,1735889448971,-590.55,9.551e-05,2]
[347506045,1735889448982,-500.0,9.551e-05,2]
[347506046,1735889448991,-860.42,9.551e-05,2]
[347506047,1735889449005,-2025.49,9.551e-05,2]
[347506048,1735889449015,-500.0,9.551e-05,2]
[347506049,1735889449024,-500.0,9.551e-05,2]
[347506050,1735889449034,-2945.3,9.551e-05,2]
[347506051,1735889449044,-1191.59,9.551e-05,2]